Cogmind - Beta 13 @@@ ROGUE MODE // 2024.04.14 @ 22:51:12 Player: DDembro Result: Destroyed by Y-45 Defender with Beam Rifle Performance ------------- Evolutions (1) 500 Regions Visited (4) 800 Robots Destroyed (11) 55 Value Destroyed (253) 253 Prototype IDs (0) 0 Alien Tech Used (0) 0 Bonus (0) 0 TOTAL SCORE: 1608 Bonus ------- None Cogmind --------- Core Integrity 0/400 Matter 296/300 Energy 100/100 System Corruption 0% Temperature Cool (9) Movement Core (350) Ox6 Location -9/Storage Parts ------- > --- POWER (1) -------- (None) > --- PROPULSION (2) --- (None) > --- UTILITY (4) ------ Large Storage Unit > --- WEAPON (2) ------- Light Assault Rifle > --- INVENTORY (15) --- Nuclear Core Titanium Leg Titanium Leg Titanium Leg Titanium Leg Large Storage Unit Medium Matter Pod (100) Advanced Weight Redist. System Advanced Visual Processing Unit Peak State ------------ > --- POWER ------------ Nuclear Core > --- PROPULSION ------- Compact Wheel Compact Wheel > --- UTILITY ---------- Heat Sink Large Storage Unit Advanced Weight Redist. System Drone Bay > --- WEAPON ----------- EM Pulse Gun EM Pulse Gun > --- INVENTORY -------- Nuclear Core Nuclear Core Titanium Leg Titanium Leg Titanium Leg Titanium Leg Large Storage Unit Medium Matter Pod Advanced Weight Redist. System Advanced Visual Processing Unit Medium Laser Beam Rifle Assault Rifle [Rating: 20] Favorites ----------- Power Light Ion Engine Engine Light Ion Engine Power Core Nuclear Core Propulsion Compact Wheel Wheel Compact Wheel Utility Large Storage Unit Device Advanced Weight Redist. System Storage Large Storage Unit Processor Advanced Visual Processing Unit Weapon EM Pulse Gun Energy Gun EM Pulse Gun Ballistic Gun Light Assault Rifle Build | -11 -10 -10 -9 -9 ------- Run | Yrd Mat Min Mat Sto Slots Evolved 2 | . . . 2 . Power . | . . . . . Propulsion . | . . . . . Utility 2 | . . . 2 . Weapon . | . . . . . Parts Attached 17 | 6 1 . 4 6 Power 3 | 1 . . 1 1 Engine 1 | 1 . . . . Core 2 | . . . 1 1 Reactor . | . . . . . Propulsion 2 | 2 . . . . Treads . | . . . . . Leg . | . . . . . Wheel 2 | 2 . . . . Hover . | . . . . . Flight . | . . . . . Utility 6 | 1 1 . 3 1 Device 3 | . . . 2 1 Storage 2 | 1 1 . . . Processor 1 | . . . 1 . Hackware . | . . . . . Protection . | . . . . . Artifact . | . . . . . Weapon 6 | 2 . . . 4 Energy Gun 4 | 2 . . . 2 Energy Cannon . | . . . . . Ballistic Gun 2 | . . . . 2 Ballistic Cannon . | . . . . . Launcher . | . . . . . Special Weapon . | . . . . . Impact Weapon . | . . . . . Slashing Weapon . | . . . . . Piercing Weapon . | . . . . . Special Melee Weapon . | . . . . . Unidentified Prototypes . | . . . . . Parts Lost 12 | . . . . 12 Power 2 | . . . . 2 Propulsion 2 | . . . . 2 Utility 3 | . . . . 3 Weapon 5 | . . . . 5 Highest Loss Streak 12 | . . . . 12 To Critical Strikes . | . . . . . Average Slot Usage (%) 79 | . 85 85 77 71 Engine 6 | . 14 14 . . Core 4 | . . . 10 7 Wheel 21 | . 28 28 22 13 Device 8 | . . . 8 20 Storage 12 | . 14 14 11 11 Processor 1 | . . . 3 . Energy Gun 22 | . 28 28 22 15 Naked Turns . | . . . . . Heaviest Build 38 | 12 32 27 32 38 Greatest Support 41 | 32 32 32 41 41 Greatest Overweight (x) 7 | . . . . 7 Average Overweight (x) . | . . . . . Largest Inventory Capacity 15 | 8 15 15 15 15 Average Capacity 14 | 6 14 15 15 15 Most Carried 15 | 4 7 7 15 14 Average Carried 8 | 2 5 7 11 11 Final Capacity 15 | 8 15 15 15 15 Final Carried 15 | 4 7 7 15 9 Class Distribution -------------------- 100% | Mutant Dominant Class ---------------- Mutant | -10/Materials Mutant | -10/Mines Mutant | -9/Materials Mutant | -9/Storage Resources | -11 -10 -10 -9 -9 ----------- Run | Yrd Mat Min Mat Sto Matter Collected 434 | 192 78 . 57 107 Remotely . | . . . . . Salvage Created 405 | . 98 . 57 250 Parts 27 | . 7 . 7 13 Haulers Intercepted . | . . . . . Recyclers Shooed . | . . . . . Parts Field Recycled . | . . . . . Retrieved Matter . | . . . . . Parts Self-Destructed . | . . . . . Prevented . | . . . . . Kills | -11 -10 -10 -9 -9 ------- Run | Yrd Mat Min Mat Sto Combat Hostiles Destroyed 9 | . 2 . 1 6 Guns 8 | . 2 . 1 5 AOE 1 | . . . . 1 Classes Destroyed 5 | . 1 . 1 3 Builder 1 | . . . . 1 Recycler 1 | . . . . 1 Swarmer 4 | . . . . 4 Grunt 3 | . 2 . . 1 Sentry 2 | . . . 1 1 Best Kill Streak 5 | . 2 . 1 5 Combat Bots Only 3 | . 2 . 1 3 Max Kills in Single Turn 2 | . 1 . 1 2 Gunslinging . | . . . . . Exploded 1 | . . . . 1 Melee . | . . . . . Uniques/NPCs Destroyed . | . . . . . Combat | -11 -10 -10 -9 -9 -------- Run | Yrd Mat Min Mat Sto Hostile Shots Fired 152 | . 1 3 2 146 Missed 40 | . 1 2 1 36 Damage Taken 1426 | . . 15 15 1396 Core 409 | . . . . 409 Absorbed by Shields . | . . . . . Core Remaining (%) 100 | 100 . 100 . . Volleys Fired 38 | . 3 . 4 31 Largest 2 | . 2 . 2 2 Hottest 80 | . 80 . 80 80 Shots Fired 57 | . 6 . 8 43 Gun 57 | . 6 . 8 43 Cannon . | . . . . . Launcher . | . . . . . Special . | . . . . . Kinetic 14 | . . . . 14 Thermal 12 | . . . . 12 Explosive . | . . . . . Electromagnetic 31 | . 6 . 8 17 Robot Hit Streak 6 | . 4 . 6 5 Robot Miss Streak 4 | . . . 3 4 Penetration Max . | . . . . . Secondary Targets 1 | . . . . 1 Max Gunslinging Chain 1 | . . . . 1 Shots Hit Robots 34 | . 4 . 3 27 Core Hits 19 | . 4 . 2 13 Critical Kills . | . . . . . Critical Parts Destroyed . | . . . . . Critical Strikes 1 | . . . . 1 Corrupt 1 | . . . . 1 Melee Attacks . | . . . . . Impact . | . . . . . Slashing . | . . . . . Piercing . | . . . . . Sneak Attacks . | . . . . . Combat Hostiles . | . . . . . Follow-up Attacks . | . . . . . Damage Inflicted 669 | . 52 . 48 569 Guns 453 | . 52 . 48 353 Cannons . | . . . . . Explosions 216 | . . . . 216 Melee . | . . . . . Ramming . | . . . . . Kinetic 105 | . . . . 105 Thermal 177 | . . . . 177 Explosive 157 | . . . . 157 Electromagnetic 230 | . 52 . 48 130 Impact . | . . . . . Slashing . | . . . . . Piercing . | . . . . . Highest Corruption . | . . . . . Average Corruption . | . . . . . Corruption Purged . | . . . . . Corruption Blocked . | . . . . . Overload Shots . | . . . . . Overflow Damage 13 | . . . . 13 Projectiles . | . . . . . Explosions 13 | . . . . 13 Melee . | . . . . . Knockbacks . | . . . . . Impact . | . . . . . Kinetic . | . . . . . Secondary . | . . . . . Self-Inflicted Damage 82 | . . . . 82 Shots 2 | . . . . 2 Rammed . | . . . . . Targets Rammed . | . . . . . Kicked . | . . . . . Crushed . | . . . . . Highest Temperature 91 | . 18 7 30 91 Average Temperature 24 | . 12 7 13 29 Received Heat Transfer 564 | . . 27 9 528 Siege Activations . | . . . . . Robots Corrupted . | . . . . . Combat Hostiles . | . . . . . Parts Fried . | . . . . . Impact Corruptions . | . . . . . Robots Melted . | . . . . . Combat Hostiles . | . . . . . Parts Melted 2 | . . . . 2 Heat Transferred 433 | . . . . 433 Parts Sabotaged . | . . . . . Parts Stolen . | . . . . . Parts Stripped . | . . . . . Power Chain Reactions 1 | . . . . 1 Alert | -11 -10 -10 -9 -9 ------- Run | Yrd Mat Min Mat Sto Peak Influence 140 | . 65 25 54 140 Initial 25 | . . 25 9 22 Average 29 | . 19 25 22 55 Maximum Alert Level . | . . . . . Low Security (%) 100 | 100 100 100 100 100 Level 1 . | . . . . . Level 2 . | . . . . . Level 3 . | . . . . . Level 4 . | . . . . . Level 5 . | . . . . . High Security . | . . . . . Max Security . | . . . . . Squads Dispatched 5 | . 3 . . 2 Investigation 3 | . 3 . . . Extermination . | . . . . . Reinforcement 1 | . . . . 1 Assault . | . . . . . Garrison 1 | . . . . 1 Intercept . | . . . . . Searches Triggered . | . . . . . Construction Impeded . | . . . . . Haulers Reinforced . | . . . . . Active Scanning Responses . | . . . . . Cargo Convoy Interrupts . | . . . . . Stealth | -11 -10 -10 -9 -9 --------- Run | Yrd Mat Min Mat Sto Distress Signals . | . . . . . Communications Jammed . | . . . . . Distress Signals . | . . . . . Times Spotted 19 | . 2 2 2 13 Peak Tracking Total 6 | . 2 2 2 6 Tactical Retreats 2 | . . . . 2 Traps | -11 -10 -10 -9 -9 ------- Run | Yrd Mat Min Mat Sto Traps Triggered 1 | . 1 . . . Indirectly . | . . . . . Trap Hack Attempts . | . . . . . Triggered . | . . . . . Disarmed . | . . . . . Reprogrammed . | . . . . . Reused . | . . . . . Traps Extracted . | . . . . . Installed . | . . . . . Triggered . | . . . . . Machines | -11 -10 -10 -9 -9 ---------- Run | Yrd Mat Min Mat Sto Machines Disabled 1 | . . . . 1 Max in Single Turn 1 | . . . . 1 Machines Repaired . | . . . . . Machines Dismantled . | . . . . . Machines Sabotaged . | . . . . . Overloaded Fab Kills . | . . . . . Hacking | -11 -10 -10 -9 -9 --------- Run | Yrd Mat Min Mat Sto Machines Accessed 3 | . 2 . . 1 Terminals 3 | . 2 . . 1 Fabricators . | . . . . . Repair Stations . | . . . . . Recycling Units . | . . . . . Scanalyzers . | . . . . . Garrison Access . | . . . . . Total Hacks 14 | . 12 . . 2 Successful 9 | . 8 . . 1 Failed 5 | . 4 . . 1 Catastrophic . | . . . . . Database Lockouts . | . . . . . Manual . | . . . . . Terminals 14 | . 12 . . 2 Fabricators . | . . . . . Repair Stations . | . . . . . Recycling Units . | . . . . . Scanalyzers . | . . . . . Garrison Access . | . . . . . Terminal Hacks 9 | . 8 . . 1 Record 4 | . 4 . . . Open Door 1 | . . . . 1 Emergency Access Points 1 | . 1 . . . Alert Level 2 | . 2 . . . Hauler Manifests 1 | . 1 . . . Fabricator Hacks . | . . . . . Repair Station Hacks . | . . . . . Recycling Unit Hacks . | . . . . . Scanalyzer . | . . . . . Garrison Access Hacks . | . . . . . Unauthorized Hacks . | . . . . . Terminals . | . . . . . Fabricators . | . . . . . Repair Stations . | . . . . . Recycling Units . | . . . . . Scanalyzers . | . . . . . Garrison Access . | . . . . . Data Cores Recovered . | . . . . . Used . | . . . . . Hacking Detections 2 | . 2 . . . Full Trace Events 2 | . 2 . . . Feedback Events . | . . . . . Feedback Blocked . | . . . . . Robot Schematics Acquired . | . . . . . Robots Built . | . . . . . Authchips . | . . . . . Time . | . . . . . Total Robot Build Rating . | . . . . . Part Schematics Acquired . | . . . . . Parts Built . | . . . . . Authchips . | . . . . . Time . | . . . . . Total Part Build Rating . | . . . . . Parts Repaired . | . . . . . Time . | . . . . . Parts Recycled . | . . . . . Recycled Matter . | . . . . . Retrieved Matter . | . . . . . Retrieved Components . | . . . . . Parts Scanalyzed . | . . . . . Part Schematics Acquired . | . . . . . Parts Damaged . | . . . . . Bothacking | -11 -10 -10 -9 -9 ------------ Run | Yrd Mat Min Mat Sto Used RIF Installer . | . . . . . Robots Hacked . | . . . . . Non-combat . | . . . . . Combat . | . . . . . Robot Hacks Applied . | . . . . . Relay Couplers Released . | . . . . . Fabnet Peak Effective % . | . . . . . Robots Rewired . | . . . . . Allies Hacked . | . . . . . Hacks Repelled . | . . . . . Allies | -11 -10 -10 -9 -9 -------- Run | Yrd Mat Min Mat Sto Total Allies . | . . . . . Largest Group . | . . . . . Highest-Rated Group . | . . . . . Highest-Rated Ally . | . . . . . Total Orders . | . . . . . Ally Attacks . | . . . . . Total Damage . | . . . . . Kills . | . . . . . Allies Corrupted . | . . . . . Allies Melted . | . . . . . Intel | -11 -10 -10 -9 -9 ------- Run | Yrd Mat Min Mat Sto Robot Analysis Total . | . . . . . Derelict Logs Recovered . | . . . . . Drone Launches 2 | . . . . 2 Drone Recoveries 1 | . . . . 1 Exploration | -11 -10 -10 -9 -9 ------------- Run | Yrd Mat Min Mat Sto Turns Passed 565 | 43 194 35 133 160 Spaces Moved 377 | 34 163 34 83 63 Core 10 | 6 . . . 4 Treads . | . . . . . Legs . | . . . . . Wheels 367 | 28 163 34 83 59 Hover . | . . . . . Flight . | . . . . . Fastest Speed 50 | 50 100 100 100 100 Average Speed 102 | 91 100 100 100 117 Slowest Speed 400 | 100 100 100 100 400 Overloaded Moves . | . . . . . Propulsion Burnouts . | . . . . . Robots Hopped . | . . . . . Cave-ins Triggered . | . . . . . Exploration Rate (%) 14 | 4 29 11 10 16 Regions Visited 4 Branch Regions 2 Pre-discovered Areas . | . . . . . Known Exits Taken . | . . . . . Unknown Exits Taken 4 | 1 1 1 1 . Scrap Searched . | . . . . . Spaces Dug . | . . . . . Terrain Destroyed 14 | . . . . 14 Melee . | . . . . . Projectile . | . . . . . AOE 14 | . . . . 14 Terrain Rammed . | . . . . . Walls Destroyed . | . . . . . Machines Disabled . | . . . . . Actions | -11 -10 -10 -9 -9 --------- Run | Yrd Mat Min Mat Sto Total 497 | 43 188 35 124 107 Wait 45 | . 18 2 21 4 Move 373 | 33 162 33 82 63 Hop . | . . . . . Pick Up 18 | 4 3 . 10 1 Fast Attach 11 | 6 1 . 3 1 Attach 4 | . . . . 4 Detach . | . . . . . Swap 2 | . . . 1 1 Drop 6 | . 1 . 3 2 Fire 38 | . 3 . 4 31 Melee . | . . . . . Ram . | . . . . . Kick . | . . . . . Crush . | . . . . . Escape Stasis . | . . . . . Rewire . | . . . . . Trap . | . . . . . Miscellaneous . | . . . . . Route ------- -11/Scrapyard -10/Materials -10/Mines -9/Materials -9/Storage History --------- Turn | Location | Event 9 | -11/Scrapyard | Discovered new exit (range 16) 44 | -11/Scrapyard | Entered Materials 216 | -10/Materials | Discovered new exit (range 12) 238 | -10/Materials | Entered Mines 269 | -10/Mines | Discovered new exit (range 4) 273 | -10/Mines | Entered Materials 273 | -9/Materials | Evolved 2 slots: Utility x2 331 | -9/Materials | Build established: Mutant 357 | -9/Materials | Discovered new exit (range 15) 406 | -9/Materials | Entered Storage 495 | -9/Storage | Garrison activated, responded to threat 529 | -9/Storage | Core integrity fell below 50% 553 | -9/Storage | Core integrity fell below 20% 566 | -9/Storage | Destroyed by Y-45 Defender with Beam Rifle Last Messages --------------- R-06 Scavenger collects Terrain Scan Processor. U-05 Engineer lays Concrete. Acquired 54 matter. U-05 Engineer builds a Wall. Beam Rifle destroyed. R-06 Scavenger collects Heat Sink. Acquired Lgt. Assault Rifle. S-10 Pest destroyed. U-05 Engineer lays Concrete. U-05 Engineer builds a Wall. U-05 Engineer lays Concrete. G-34 Mercenary destroyed. U-05 Engineer lays Concrete. K-01 Serf collects debris. Acquired 33 matter. U-05 Engineer builds a Wall. K-01 Serf collects debris. U-05 Engineer builds a Wall. K-01 Serf collects debris. U-05 Engineer builds a Wall. Map ----- +----------------------------------------------------+ | ?????????????????????????????????????????????????? | | ?????????????????????????????????????????????????? | | ?????????????????????????????????????????????????? | | ?????????????????????????????????????????????????? | | ?????????????????????????????????????????????????? | | ?????????????????????????????????????????????????? | | ?????????????????????????????????????????????????? | | ??????????????????????????????#??????????????????? | | ?????????????????????????????? ??????????????????? | | ?????????????????????????????? ??????????????????? | | ?????????????????????????##### ??????????????????? | | ?????????????????????????# ??????????????????? | | ?????????????????????????# ???????????????????? | | ????????????????????????? ???????????????????? | | ???????????????????##????# #???????????????????? | | ???????????????????# ##### #???????????????????? | | ???????????????????# # #???????????????????? | | ??????????????????## # #???????????????????? | | ??????????????????## # #???????????????????? | | ?????????????????###u # #???????????????????? | | ?????????????????# # # % #????????????##?????? | | ??????????##########u =#% #???????????? #?????? | | ????????? # u!%+%Y #???????????? #?????? | | ????????? = # %# = #???????????? #?????? | | ????????? #=== =#*%k#????#??????" #?????? | | ????????? #== !=@%[%#????# ????? #?????? | | ???????????????????#== !#s #????? ????? #?????? | | ???????????????????# # #????? """"" #?????? | | ???????????????????####### #????# ??????? | | ?????????????????????????# #????? ???###+# | | ?????????????????????????# ########+##+##### | | ?????????????????????????# a | | ?????????????????????????+ | | ?????????????????????????# | | ?????????????????????????##+##+############### | | ??????????????????????????? ?????????????## | | ???????????????????????????"""""??????????????# | | ??????????????????????????????????????######### | | ???????????????????????????????????# | | ??????????????????????????????????????######### | | ??????????????????????????????????????????????# | | ??????????????????????????????????????????????# | | ??????????????????????????????????????????????# | | ??????????????????????????????????????????????# * | | ??????????????????????????????????????????????# * | | ??????????????????????????????????????????????#### | | ?????????????????????????????????????????????????? | | ?????????????????????????????????????????????????? | | ?????????????????????????????????????????????????? | | ?????????????????????????????????????????????????? | +----------------------------------------------------+ Best States ------------- Heat Dissipation 38 Energy Generation 14 Energy Capacity 240 Matter Stores 300 Matter Capacity 300 Sight Range 20 Terrain Scan Density 10 Additional Mass Support 9 Evasion (%) 40 Item Schematics ----------------- None Robot Schematics ------------------ None Fabricated ------------ Nothing Alien Tech Used ----------------- None Achievements -------------- None Challenges ------------ None Game ------ Seed SlugAssaultRail Manual? 0 Play Time 00:14:22 Cumulative 1.9 hours Start 2024.04.14 @ 22:35:35 End 2024.04.14 @ 22:51:12 Sessions 1 Manual Loads 0 Difficulty Rogue Special Mode None Game No. 4 Rogue 4 Adventurer 0 Explorer 0 Win Type - Total 0 Types 0/0/0/0/0/0/0/0/0 Lore% 1 Gallery% 5 Achievement% 5 Wizard Run 0 Options --------- Layout 1 ASCII 0 Keyboard 0 Movement Mouse Keybinds 0 Fullscreen 1 Font 24/Smallcaps Map View 50x35 Zoom Use 0% Tactical HUD 0 Map Filters NONE Filters NONE Steam 1 RUN: 532553f1-738e-477e-a935-c635f27320f4